bitfinex/quotes_ETHUSD_20240820
["timestamp","ask_amount","ask_price","bid_price","bid_amount"]
[1724191659594,3.84888,2598.2,2597.5,3.84975]
[1724191659768,2.3788,2598.4,2597.6,0.90131281]
[1724191659969,7.69849,2598.0,2597.6,1.45131281]
[1724191660180,7.69849,2598.0,2597.6,0.55]
[1724191660409,3.8492,2598.0,2597.6,0.55]
[1724191660584,7.69841,2598.0,2597.6,0.55]
[1724191661011,3.84928,2597.9,2597.6,0.55]
[1724191663746,3.84928,2597.9,2597.6,2.552]
[1724191664500,3.84928,2597.9,2597.6,22.022]
[1724191664706,3.84928,2597.9,2597.6,20.02]
[1724191667003,0.2080361,2597.8,2597.6,20.02]
[1724191668249,4.0574461,2597.8,2597.6,20.02]
[1724191668755,3.84955,2597.7,2597.6,20.02]
[1724191669247,4.0575861,2597.7,2597.6,20.02]
[1724191670023,7.9071361,2597.7,2597.6,19.47]
[1724191670412,7.9071361,2597.7,2597.0,2.3613]
[1724191670413,3.84989,2597.5,2597.1,19.47]
[1724191670617,3.84989,2597.5,2597.2,19.47]
[1724191671444,3.84989,2597.5,2597.3,20.02]
[1724191671797,7.69985,2597.5,2597.3,20.02]
[1724191671997,3.85,2597.4,2597.3,19.47]
[1724191672233,4.05786156,2597.4,2597.3,19.47]
[1724191672643,0.20786156,2597.4,2597.3,19.47]
[1724191673017,3.84989,2597.5,2597.3,19.47]
[1724191673443,3.84989,2597.5,2597.4,0.55]
[1724191675609,3.84941,2597.8,2597.4,0.55]
[1724191675882,2.4278,2597.9,2597.4,2.937027]
[1724191676083,3.84887,2598.2,2597.6,3.84969]
[1724191676289,7.69782,2598.2,2597.7,0.55]
[1724191676440,3.849,2598.1,2597.7,0.55]
[1724191679341,3.849,2598.1,2597.7,20.02]
[1724191680187,0.20786156,2598.0,2597.7,20.02]
[1724191680844,0.20786156,2598.0,2597.9,9.97742]
[1724191681067,0.1499,2599.3,2598.4,3.84842]
[1724191681068,3.84773,2599.0,2598.4,3.84842]
[1724191681243,7.69486,2599.2,2598.5,3.84834]
[1724191681559,3.84749,2599.1,2598.6,1.555936]
[1724191682364,3.8474,2599.2,2598.6,1.555936]
[1724191682365,3.84765,2599.0,2598.6,1.555936]
[1724191683666,3.84765,2599.0,2598.6,0.55]
[1724191683885,3.84765,2599.0,2598.5,0.55]
[1724191684285,3.84795,2598.8,2598.5,0.55]
[1724191684487,3.84778,2598.9,2598.3,4.39857]
[1724191684809,3.84769,2599.0,2598.3,0.55]
[1724191685119,6.15947,2598.9,2598.3,0.55]
[1724191685260,6.15947,2598.9,2598.2,0.55]
[1724191685261,3.84787,2598.9,2598.2,0.55]
[1724191685463,3.84754,2599.1,2598.2,0.55]
[1724191685911,3.84765,2599.0,2598.4,3.84844]
[1724191686074,3.8478,2598.9,2598.5,0.55]
[1724191686461,3.8478,2598.9,2598.1,6.12729]
[1724191686662,7.69577,2598.9,2598.1,6.12726]
[1724191686861,3.84757,2599.1,2598.4,7.69694]
[1724191687061,3.84757,2599.1,2598.4,4.618124]
[1724191687308,3.84781,2598.9,2598.2,3.84868]
[1724191687468,7.69568,2598.9,2598.3,3.84865]
[1724191687664,3.84781,2598.9,2598.3,3.84865]
[1724191687863,7.69568,2598.9,2598.3,4.461355]
[1724191688106,7.69573,2598.9,2598.4,0.55]
[1724191688400,3.84781,2598.9,2598.4,0.55]
[1724191688632,0.19400066,2598.8,2598.4,0.55]
[1724191688969,4.04203066,2598.8,2598.4,0.55]
[1724191689381,4.04203066,2598.8,2598.2,4.39879]
[1724191689601,4.04203066,2598.8,2598.2,5.011516]
[1724191689887,0.19400066,2598.8,2598.2,5.011516]
[1724191690079,4.04202066,2598.8,2598.2,5.011516]
[1724191691017,3.84837,2598.5,2598.2,0.55]
[1724191691226,3.84837,2598.5,2597.8,6.2822]
[1724191691227,7.69684,2598.5,2597.8,6.2822]
[1724191691386,3.84837,2598.5,2597.8,25.7522]
[1724191691587,0.19400066,2598.4,2597.9,2.8139184]
[1724191691801,3.84837,2598.5,2597.9,2.8139184]
[1724191692120,0.19400066,2598.4,2597.9,2.8139184]
[1724191692337,0.19400066,2598.4,2598.0,3.849]
[1724191692624,3.84785,2598.9,2598.3,3.84867]
[1724191692771,3.84785,2598.9,2598.4,0.55]
[1724191693224,3.84797,2598.8,2598.3,0.55]
[1724191693371,3.84797,2598.8,2598.3,3.24679218]
[1724191693768,3.84824,2598.6,2598.3,0.55]
[1724191694469,3.84839,2598.5,2598.3,0.55]
[1724191694704,3.84839,2598.5,2598.2,19.47]
[1724191694705,3.8486,2598.4,2598.2,19.47]
[1724191695045,0.19473692,2598.3,2598.2,19.47]
[1724191695194,0.19473692,2598.3,2598.2,0.55]
[1724191695395,3.84839,2598.5,2598.2,0.55]
[1724191695634,3.84839,2598.5,2598.0,0.55]
[1724191695635,0.19473692,2598.4,2598.0,0.55]
[1724191695952,0.19473692,2598.4,2598.0,2.5588572]
[1724191696506,3.84867,2598.3,2598.0,0.55]
[1724191696809,3.84867,2598.3,2597.9,0.55]
[1724191697341,0.19463176,2598.2,2597.9,0.55]
[1724191697640,3.84867,2598.3,2597.9,0.55]
[1724191697842,0.19463176,2598.1,2597.9,0.55]
[1724191698044,3.84867,2598.3,2597.9,0.55]
[1724191698453,0.19463176,2598.2,2597.9,0.55]
[1724191698836,3.84867,2598.3,2597.9,0.55]
[1724191699023,3.8489,2598.2,2597.9,0.55]
[1724191699349,3.84867,2598.3,2597.9,0.55]
[1724191699557,0.19463176,2598.1,2597.9,3.677954]
[1724191699703,3.84867,2598.3,2597.9,3.677954]
[1724191700132,0.19463176,2598.2,2597.9,3.677954]
[1724191700557,0.19463176,2598.2,2597.9,0.55]
[1724191700760,3.84867,2598.3,2597.8,0.55]
[1724191701402,0.19463176,2598.2,2597.8,0.55]
[1724191701635,3.84867,2598.3,2597.8,0.55]
[1724191702056,3.84845,2598.5,2597.8,0.55]
[1724191702057,0.19463176,2598.2,2597.9,3.84914]
[1724191702205,0.19463176,2598.2,2598.0,3.374114]
[1724191702406,3.84814,2598.7,2598.0,3.374114]
[1724191702661,0.19463176,2598.6,2598.1,3.84888]
[1724191702866,0.19463176,2598.6,2598.2,4.39871]
[1724191703020,6.29726,2598.9,2598.3,4.673289]
[1724191703219,0.19456749,2598.5,2598.4,0.55]
[1724191703404,6.29726,2598.9,2598.4,0.55]
[1724191703607,0.19456749,2598.8,2598.5,0.5223289]
[1724191703872,0.19456749,2598.8,2598.6,3.0074]
[1724191704010,0.19456749,2598.8,2598.7,27.16614]
[1724191704202,0.0370164,2599.4,2599.0,3.84758]
[1724191704406,0.19456749,2599.3,2599.1,0.934758]
[1724191704656,0.0370164,2599.4,2599.1,0.934758]
[1724191704904,0.0370164,2599.4,2599.1,0.55]
[1724191705150,0.19456749,2599.3,2598.9,0.55]
[1724191705499,0.0370164,2599.4,2598.9,0.55]
[1724191705703,0.00371837,2599.3,2598.9,0.55]
[1724191705992,0.19904519,2599.3,2598.9,0.55]
[1724191706275,3.85104837,2599.3,2598.9,0.55]
[1724191706656,0.19532682,2599.2,2598.9,0.55]
[1724191706863,0.00371837,2599.1,2598.9,0.55]
[1724191707075,0.00371837,2599.1,2597.9,7.41]
[1724191707076,2.4747,2599.0,2597.9,7.41]
[1724191707252,3.84868,2598.3,2597.8,2.4574]
[1724191707596,0.00371837,2598.2,2597.9,3.84925]
[1724191708034,0.19528594,2598.1,2597.9,3.84925]
[1724191708367,0.19528594,2598.1,2597.9,4.479915]
[1724191708564,0.19528594,2598.1,2598.0,7.6981]
[1724191708768,0.00371837,2598.2,2598.1,3.84896]
[1724191709245,0.00371837,2598.2,2598.1,4.39896]
[1724191709857,0.1986597,2598.2,2598.1,4.39896]
[1724191710076,0.00371837,2598.2,2598.1,4.39896]
[1724191710434,0.00371837,2598.2,2598.1,0.55]
[1724191710435,0.1986597,2598.2,2598.1,0.55]
[1724191710630,0.00371837,2598.2,2598.1,0.55]
[1724191710830,0.1986597,2598.2,2598.1,0.55]
[1724191711859,0.1986597,2598.2,2597.6,3.84962]
[1724191712040,0.1986597,2598.2,2597.7,1.05623]
[1724191712240,0.1986597,2598.2,2597.7,4.90573]
[1724191712241,0.00371837,2598.2,2597.7,4.90573]
[1724191712484,0.19492965,2598.1,2597.7,4.90573]
[1724191712637,0.00371837,2598.0,2597.7,4.90573]
[1724191713350,0.19492965,2597.9,2597.8,0.55]
[1724191714791,0.19492965,2597.9,2597.8,4.39941]
[1724191715153,0.19492965,2597.9,2597.8,11.535229]
[1724191715490,0.00371837,2598.0,2597.9,7.69852]
[1724191715791,0.00371837,2598.0,2597.9,8.24852]
[1724191716288,0.19826248,2598.0,2597.9,8.24852]
[1724191716589,0.00371837,2598.0,2597.9,8.24852]
[1724191716753,0.00371837,2598.0,2597.9,9.5076359]
[1724191716952,0.19826248,2598.0,2597.9,9.5076359]
[1724191718057,0.19826248,2598.0,2597.9,28.80102926]
[1724191718479,0.00371837,2598.0,2597.9,28.80102926]
[1724191719395,0.00371837,2598.0,2597.9,36.56928926]
[1724191719554,0.00371837,2598.0,2597.9,41.86968926]
[1724191720189,0.00371837,2598.0,2597.9,38.02042926]
[1724191721414,0.00371837,2598.0,2597.9,34.10142926]
[1724191723806,0.00371837,2598.0,2597.9,46.10504926]
[1724191724199,0.00371837,2598.0,2597.9,47.44475997]
[1724191724403,0.00026017,2598.0,2597.9,47.44475997]
[1724191724574,0.00026017,2598.0,2597.9,49.45427223]
[1724191725201,0.0370164,2599.4,2599.3,3.84718]
[1724191725521,0.0370164,2599.4,2599.3,26.98749319]
[1724191726078,0.0370164,2599.4,2599.3,19.29313319]
[1724191726985,0.23207446,2599.4,2599.3,19.29313319]
[1724191727937,0.23207446,2599.4,2599.3,23.69031319]
[1724191728073,0.0370164,2599.4,2599.3,26.44407251]
[1724191728276,0.23207446,2599.4,2599.3,26.44407251]
[1724191728477,0.0370164,2599.4,2599.3,26.44407251]
[1724191728981,0.23207446,2599.4,2599.3,26.44407251]
[1724191729580,0.23207446,2599.4,2599.3,19.29313319]
[1724191730011,0.23207446,2599.4,2599.1,19.29313319]
[1724191730207,0.0370164,2599.4,2599.1,19.29313319]
[1724191730413,0.19505806,2599.3,2599.1,19.29313319]
[1724191730613,2.4168,2599.2,2599.1,19.29313319]
[1724191731337,2.61273985,2599.2,2599.1,19.29313319]
[1724191732623,2.61273985,2599.2,2598.8,7.41]
[1724191732624,3.84758,2599.1,2598.4,3.84843]
[1724191732795,2.61273985,2599.2,2598.2,0.3861]
[1724191732796,0.19574136,2599.0,2598.2,0.3861]
[1724191732997,2.4168,2599.2,2598.7,3.84798]
[1724191733305,0.19574136,2599.1,2598.7,4.617592]
[1724191734691,0.19574136,2599.1,2598.7,0.55]
[1724191735087,4.04330136,2599.1,2598.7,0.55]
[1724191735327,4.04330136,2599.1,2598.5,0.55]
[1724191735826,3.84801,2598.8,2598.2,3.84876]
[1724191735993,2.54165377,2598.7,2598.2,3.84876]
[1724191736198,0.19565377,2598.7,2598.2,3.84876]
[1724191736441,0.19565377,2598.7,2598.3,2.705276]
[1724191736587,0.19565377,2598.7,2598.6,7.69644]
[1724191736900,0.0370164,2599.4,2599.0,3.84759]
[1724191737428,0.19557202,2599.3,2599.1,4.39736]
[1724191737725,0.0370164,2599.4,2599.1,4.39736]
[1724191738145,0.19557202,2599.3,2599.1,4.39736]
[1724191739334,0.19557202,2599.3,2599.2,3.84733]
[1724191739539,0.19557202,2599.3,2599.2,4.39733]
[1724191741467,0.19557202,2599.3,2599.2,0.55]
[1724191741673,0.19557202,2599.3,2599.1,0.55]
[1724191742392,0.0370164,2599.4,2599.1,0.55]
[1724191742593,0.0370164,2599.4,2599.1,4.39735]
[1724191742738,0.19543775,2599.3,2599.1,4.39735]
[1724191743245,0.19543775,2599.3,2599.1,0.55]
[1724191743662,0.19543775,2599.3,2598.9,19.29313319]
[1724191743856,2.2525,2599.2,2598.9,19.29313319]
[1724191744581,2.2525,2599.2,2598.9,23.14089319]
[1724191745550,2.2525,2599.2,2598.9,19.29313319]
[1724191745788,6.09993,2599.2,2598.5,19.29313319]
[1724191745988,3.84772,2599.0,2598.5,19.29313319]
[1724191746650,2.359,2599.1,2598.5,19.29313319]
[1724191746651,2.359,2599.1,2598.7,3.84799]
[1724191746851,0.19564212,2598.9,2598.7,3.84799]
[1724191747051,2.359,2599.1,2598.7,3.84799]
[1724191747247,0.19564212,2598.8,2598.7,3.84799]
[1724191747452,2.359,2599.1,2598.6,3.8482]
[1724191747663,0.19564212,2598.8,2598.6,3.8482]
[1724191747988,2.359,2599.1,2598.7,0.55]
[1724191748366,6.20654,2599.1,2598.5,19.29313319]
[1724191748561,3.84779,2598.9,2598.5,19.29313319]
[1724191748776,7.69567,2598.9,2598.5,19.29313319]
[1724191748991,6.16637,2598.8,2598.5,19.29313319]
[1724191749156,2.51394212,2598.8,2598.5,19.29313319]
[1724191749877,6.36187212,2598.8,2598.5,19.29313319]
[1724191750083,3.8481,2598.7,2598.0,3.84902]
[1724191750281,2.3317,2598.4,2597.9,3.84916]
[1724191750594,2.3317,2598.7,2598.2,3.84873]
[1724191750768,0.19564212,2598.3,2598.2,3.84873]
[1724191750961,2.3317,2598.7,2598.2,7.69744]
[1724191751179,0.19564212,2598.3,2598.2,7.69744]
[1724191751378,7.69459,2599.3,2598.2,0.769744]
[1724191751591,0.19564212,2598.3,2598.2,3.84881]
[1724191751777,2.3317,2599.1,2598.6,3.84814]
[1724191751979,2.3317,2599.1,2598.7,0.55]
[1724191752208,0.19564212,2599.0,2598.4,23.31842]
[1724191752410,6.17921,2599.1,2598.5,3.84837]
[1724191752705,0.19472524,2599.0,2598.4,27.16683]
[1724191752868,0.19472524,2599.0,2598.4,23.31841]
[1724191753068,4.04238524,2599.0,2598.4,23.31841]
[1724191753267,3.84766,2599.0,2598.4,23.31841]
[1724191753463,0.19472524,2598.9,2598.4,23.31841]
[1724191753904,4.04251524,2598.9,2598.4,19.47]
[1724191754107,2.3317,2598.8,2598.4,19.47]
[1724191754306,3.84812,2598.7,2598.4,19.47]
[1724191754506,2.3317,2598.8,2598.4,19.47]
[1724191754849,0.19472524,2598.6,2598.4,19.47]
[1724191755110,0.19472524,2598.7,2598.4,19.47]
[1724191755286,2.3317,2598.8,2598.4,19.47]
[1724191755608,0.19472524,2598.6,2598.4,19.47]
[1724191755909,6.17965,2598.8,2598.4,19.47]
[1724191756208,3.84809,2598.7,2598.4,19.47]
[1724191756427,3.84809,2598.7,2597.9,12.27]
[1724191756428,2.4627,2598.6,2597.9,3.84922]
[1724191756706,2.4627,2598.6,2598.0,3.849]
[1724191757473,7.69704,2598.5,2597.8,27.1686]
[1724191757807,7.69704,2598.5,2597.8,23.31929]
[1724191757808,3.84854,2598.4,2597.8,23.31929]
[1724191758112,3.84854,2598.4,2597.9,0.55]
[1724191758409,0.19472524,2598.3,2597.9,0.55]
[1724191758820,4.04341524,2598.3,2597.9,0.55]
[1724191759119,3.84847,2598.5,2597.9,0.55]
[1724191759491,4.04333524,2598.4,2597.9,0.55]
[1724191760114,0.19472524,2598.4,2597.8,3.84939]
[1724191760685,4.04326524,2598.4,2597.8,3.84939]
[1724191761414,0.19472524,2598.4,2597.8,3.84932]
[1724191762102,4.04324524,2598.4,2597.8,3.84932]
[1724191762824,4.04324524,2598.4,2597.8,7.69864]
[1724191762998,4.04324524,2598.4,2597.8,10.415504]
[1724191763205,0.19472524,2598.4,2597.8,10.415494]
[1724191763406,0.19472524,2598.4,2597.8,10.415484]
[1724191763918,0.19472524,2598.4,2597.9,3.84924]
[1724191764104,0.19472524,2598.4,2598.0,1.0415414]
[1724191767326,0.19472524,2598.4,2597.9,3.84924]
[1724191769733,4.04324524,2598.4,2597.8,6.566154]
[1724191769900,3.84869,2598.3,2597.8,6.566154]
[1724191770099,4.04304714,2598.3,2597.8,6.566154]
[1724191771729,4.04304714,2598.3,2597.8,3.84929]
[1724191771934,2.326,2598.2,2597.6,3.84964]
[1724191772145,2.52025196,2598.2,2597.6,3.84962]
[1724191772350,6.1749,2598.2,2597.6,7.69923]
[1724191772510,0.19425196,2598.1,2597.6,3.84961]
[1724191772931,0.19425196,2598.1,2597.7,3.84946]
[1724191776229,0.19425196,2598.1,2597.8,3.84939]
[1724191776426,2.326,2598.2,2597.8,3.84939]
[1724191776622,0.19415846,2598.1,2597.8,3.84939]
[1724191776853,2.326,2598.2,2597.7,6.46075352]
[1724191777060,2.326,2598.2,2597.7,6.46074352]
[1724191777061,0.19415846,2598.1,2597.7,6.46074352]
[1724191777265,2.326,2598.2,2597.8,0.64607435]
[1724191777464,0.19415846,2598.1,2597.8,0.64607435]
[1724191777776,2.326,2598.2,2597.7,6.46074352]
[1724191778128,0.19415846,2598.1,2597.7,3.84945]
[1724191778336,0.19415846,2598.1,2597.7,7.69892]
[1724191778564,2.326,2598.2,2597.7,3.84945]
[1724191778865,3.84796,2598.8,2598.2,3.84878]
[1724191779069,3.84796,2598.8,2598.2,0.769762]
[1724191779239,3.84846,2598.5,2597.9,3.84917]
[1724191779440,2.2823,2598.4,2598.0,0.55]
[1724191781493,2.2823,2598.4,2597.7,3.84947]
[1724191781644,2.2823,2598.4,2597.8,0.55]
[1724191781833,6.13083,2598.4,2597.8,4.39937]
[1724191782383,2.2823,2598.4,2597.8,4.39937]
[1724191782580,6.13093,2598.4,2597.8,0.55]
[1724191782870,6.13093,2598.4,2597.8,4.39932]
[1724191783171,2.2823,2598.4,2597.9,3.84922]
[1724191784926,9.22414,2598.9,2598.2,3.84881]
[1724191785132,0.19419352,2598.3,2598.2,3.84881]
[1724191785374,5.3763,2598.9,2598.4,3.8485]
[1724191785672,3.84801,2598.8,2598.2,4.3987]
[1724191785883,3.0,2598.7,2598.2,4.3987]
[1724191786194,6.84808,2598.7,2598.2,4.3987]
[1724191786332,3.0,2598.7,2598.2,4.3987]
[1724191786534,6.84816,2598.7,2598.2,0.55]
[1724191786753,6.84816,2598.7,2598.0,7.69808]
[1724191786754,6.84816,2598.7,2598.1,4.39894]
[1724191787265,3.0,2598.7,2598.2,3.8488]
[1724191789074,6.84812,2598.7,2598.2,3.8488]
[1724191789290,3.84822,2598.6,2598.1,0.55]
[1724191789457,7.69655,2598.6,2598.1,0.55]
[1724191789662,3.8486,2598.4,2597.8,3.8493]
[1724191789867,7.69725,2598.4,2597.9,0.55]
[1724191790176,3.84875,2598.3,2597.9,0.55]
[1724191791004,3.84875,2598.3,2597.8,0.55]
[1724191792886,3.84875,2598.3,2597.8,4.3994]
[1724191794500,7.69726,2598.4,2597.8,4.3993]
[1724191794691,3.84871,2598.3,2597.8,4.3993]
[1724191795000,3.84871,2598.3,2597.8,3.8493]
[1724191795196,3.8486,2598.4,2597.8,3.8493]
[1724191795801,3.84868,2598.3,2597.8,3.8493]
[1724191796023,3.84883,2598.2,2597.6,3.84965]
[1724191796196,3.84877,2598.3,2597.6,3.84961]
[1724191796399,2.4855,2598.5,2597.4,33.15329]
[1724191796611,2.3386,2597.9,2597.4,7.69981]
[1724191796914,0.19438052,2597.8,2597.6,3.84968]
[1724191797089,0.19438052,2597.8,2597.6,7.69936]
[1724191797287,0.19438052,2597.8,2597.7,7.6991]
[1724191797482,2.3705,2598.3,2597.7,3.84955]
[1724191797802,0.19438052,2598.2,2597.8,3.84928]
[1724191798408,6.84839,2598.5,2597.8,3.84931]
[1724191798581,0.1941935,2598.1,2597.9,0.55]
[1724191798789,6.84839,2598.5,2597.9,0.55]
[1724191799013,0.19421104,2598.0,2597.9,4.39913]
[1724191799309,0.19394224,2598.0,2597.9,4.39913]
[1724191799835,10.69686,2598.5,2597.9,4.39913]
[1724191799977,0.19394224,2598.0,2597.9,4.39913]
[1724191800330,0.19394224,2598.0,2597.9,5.46486446]
[1724191800531,3.84856,2598.4,2597.9,1.61573446]
[1724191800692,0.19394224,2598.0,2597.9,0.55]
[1724191800894,3.84856,2598.4,2597.9,0.55]
[1724191801110,0.19394224,2598.0,2597.9,0.55]
[1724191801329,3.84891,2598.2,2597.8,2.4089246]
[1724191801532,3.84891,2598.2,2597.6,24.089556]
[1724191801533,0.19394224,2598.0,2597.6,27.16921]
[1724191801837,6.29461,2598.2,2597.7,0.55]
[1724191802454,6.29461,2598.2,2597.6,3.84959]
[1724191802740,6.2946,2598.2,2597.6,3.84959]
[1724191802953,0.19399484,2598.1,2597.6,3.84959]
[1724191803394,0.19399484,2598.1,2597.6,7.69921]
[1724191803595,6.2946,2598.2,2597.6,7.69921]
[1724191804107,0.19399484,2598.1,2597.6,3.84959]
[1724191804297,0.19399484,2598.1,2597.6,7.69921]
[1724191804741,0.19399484,2598.1,2597.7,3.84955]
[1724191805296,6.2946,2598.2,2597.7,3.84955]
[1724191805666,0.19399484,2598.1,2597.7,3.84955]
[1724191805797,0.19399484,2598.1,2597.6,3.84959]
[1724191806914,0.19399484,2598.1,2597.6,7.69918]
[1724191807303,0.19399484,2598.1,2597.6,3.84959]
[1724191807802,0.19399484,2598.1,2597.6,7.69921]
[1724191808003,0.19399484,2598.1,2597.6,3.84959]
[1724191808261,0.19399484,2598.1,2597.7,3.84953]
[1724191808801,0.19399484,2598.1,2597.6,4.234549]
[1724191809006,0.19399484,2598.1,2597.6,8.084179]
[1724191809448,0.19399484,2598.1,2597.7,3.84954]
[1724191812177,0.19399484,2598.1,2597.6,4.234549]
[1724191812461,0.19399484,2598.1,2597.6,8.084159]
[1724191813065,0.19399484,2598.1,2597.6,8.084169]
[1724191813559,0.19399484,2598.1,2597.6,4.234549]
[1724191813764,0.19399484,2598.1,2597.6,7.6992]
[1724191814362,0.19399484,2598.1,2597.7,3.84955]
[1724191817160,0.19399484,2598.1,2597.6,3.84959]
[1724191817316,0.19399484,2598.1,2597.7,0.55]
[1724191818247,0.19399484,2598.1,2597.7,4.39955]
[1724191818456,0.19399484,2598.1,2597.7,0.55]
[1724191819374,0.19399484,2598.1,2597.8,3.8494]
[1724191819664,0.19399484,2598.1,2597.7,0.55]
[1724191819665,0.19399484,2598.1,2597.7,4.39948]
[1724191820097,0.19399484,2598.1,2597.7,0.55]
[1724191820265,3.84912,2598.0,2597.7,0.55]
[1724191820478,10.14346,2598.2,2597.6,4.39968]
[1724191820619,0.19390132,2597.9,2597.6,4.39968]
[1724191820968,3.84896,2598.1,2597.6,4.39968]
[1724191821172,0.19390132,2597.8,2597.6,4.39968]
[1724191821568,2.4015,2598.8,2597.7,4.0045]
[1724191821880,2.4015,2598.8,2598.5,3.84837]
[1724191822166,2.4015,2598.8,2598.3,3.84857]
[1724191822373,2.4015,2598.8,2598.4,0.55]
[1724191822533,6.24945,2598.8,2598.4,0.55]
[1724191823322,2.4015,2598.8,2598.4,0.55]
[1724191823520,2.4015,2598.8,2598.4,4.39844]
[1724191824818,0.0370164,2599.4,2598.5,2.3383]
[1724191825020,0.0370164,2599.4,2599.3,3.84718]
[1724191825222,0.0370164,2599.4,2599.3,10.967378]
[1724191826525,0.0370164,2599.4,2599.3,4.39718]
[1724191830173,0.0370164,2599.4,2598.8,3.0]
[1724191830427,0.0370164,2599.4,2599.1,3.84746]
[1724191830627,0.18793677,2599.3,2599.1,3.84746]
[1724191830968,0.18793677,2599.3,2599.1,4.616958]
[1724191831384,0.18793677,2599.3,2599.2,3.84733]
[1724191831909,0.26039173,2599.3,2599.2,3.84733]
[1724191842947,0.26039173,2599.3,2599.2,7.69466]
[1724191843093,0.26039173,2599.3,2599.2,8.24466]
[1724191843293,0.26039173,2599.3,2599.2,9.1460758]
[1724191845400,0.26039173,2599.3,2599.2,5.2987458]
[1724191846054,0.26039173,2599.3,2598.8,3.84785]
[1724191846193,0.26039173,2599.3,2599.0,3.84761]
[1724191846806,0.26039173,2599.3,2598.8,3.84783]
[1724191847241,0.26039173,2599.3,2598.9,3.84777]
[1724191848996,0.26039173,2599.3,2598.7,3.848]
[1724191849219,0.26039173,2599.3,2598.8,0.55]
[1724191849419,4.10765173,2599.3,2598.8,0.55]
[1724191849676,0.26039173,2599.3,2598.8,4.39783]
[1724191850217,4.10759173,2599.3,2598.8,4.39783]
[1724191852270,3.84734,2599.2,2598.8,0.55]
[1724191852572,6.1534,2599.0,2598.4,9.36385]
[1724191852909,6.15336,2599.0,2598.5,3.84836]
[1724191853075,0.26175848,2598.9,2598.5,4.809717]
[1724191853233,0.26175848,2598.9,2598.6,3.84821]
[1724191856364,0.26175848,2598.9,2598.6,7.69642]
[1724191856669,0.26175848,2598.9,2598.6,3.84821]
[1724191856857,0.26175848,2598.9,2598.6,4.9056177]
[1724191857063,0.26175848,2598.9,2598.6,8.7537477]
[1724191857858,0.26175848,2598.9,2598.6,4.9056077]
[1724191858480,2.3057,2599.0,2598.6,4.9056077]
[1724191858774,2.3057,2599.0,2598.6,3.84813]
[1724191858925,0.25465839,2598.9,2598.6,3.84813]
[1724191859443,2.3057,2599.0,2598.6,3.84813]
[1724191859755,2.3057,2599.0,2598.4,5.51543]
[1724191859756,0.25465839,2598.9,2598.5,3.84837]
[1724191860073,0.25465839,2598.9,2598.6,3.84818]
[1724191861598,0.25465839,2598.9,2598.4,5.51537]
[1724191861758,0.25465839,2598.9,2598.5,4.39836]
[1724191863687,0.25465839,2598.9,2598.5,4.3983]
[1724191864094,0.25465839,2598.9,2598.5,8.24659]
[1724191864299,0.25465839,2598.9,2598.5,9.237949]
[1724191864657,0.25465839,2598.9,2598.5,5.389649]
[1724191864856,0.25465839,2598.9,2598.5,9.237929]
[1724191865110,0.25465839,2598.9,2598.5,5.389639]
[1724191865262,0.25465839,2598.9,2598.5,9.237929]
[1724191865659,0.25465839,2598.9,2598.5,5.389639]
[1724191866209,4.10248839,2598.9,2598.5,0.55]
[1724191867708,3.84802,2598.8,2598.3,3.84865]
[1724191867912,3.84802,2598.8,2598.4,0.55]
[1724191868280,0.25465839,2598.7,2598.4,0.55]
[1724191868601,3.84802,2598.8,2598.4,0.55]
[1724191868966,0.25446989,2598.7,2598.4,0.55]
[1724191869381,3.84802,2598.8,2598.4,0.55]
[1724191869561,0.25446989,2598.6,2598.4,4.39851]
[1724191869763,3.84802,2598.8,2598.4,4.39851]
[1724191870005,0.25446989,2598.5,2598.4,4.39851]
[1724191870170,3.84802,2598.8,2598.4,4.39851]
[1724191870373,0.25446989,2598.5,2598.4,4.39851]
[1724191870606,3.84802,2598.8,2598.4,0.55]
[1724191870911,3.84802,2598.8,2598.3,4.39859]
[1724191871117,0.25446989,2598.7,2598.3,4.39859]
[1724191871411,3.84802,2598.8,2598.3,4.39859]
[1724191871746,0.25446989,2598.7,2598.3,4.39859]
[1724191872209,0.25446989,2598.6,2598.3,4.39859]
[1724191872415,3.84802,2598.8,2598.3,4.39859]
[1724191872785,0.25446989,2598.7,2598.3,4.39859]
[1724191872991,3.84802,2598.8,2598.3,4.39859]
[1724191873204,3.84832,2598.6,2598.2,7.41]
[1724191873525,6.23432,2598.6,2598.2,7.41]
[1724191873885,4.10294989,2598.5,2598.2,7.41]
[1724191874601,3.84852,2598.4,2598.2,7.41]
[1724191875199,0.25446989,2598.3,2598.2,7.41]
[1724191875555,0.25446989,2598.3,2597.7,5.51646]
[1724191875556,4.10321989,2598.3,2597.7,12.92645]
[1724191875812,3.84875,2598.3,2597.7,20.51124554]
[1724191875968,3.84875,2598.3,2597.8,3.84938]
[1724191876172,3.84875,2598.3,2597.7,16.66176554]
[1724191876605,0.25409872,2598.2,2597.7,16.66176554]
[1724191876818,0.25409872,2598.2,2597.8,0.55]
[1724191876985,5.51552,2598.4,2597.8,4.39939]
[1724191877186,0.25398085,2598.3,2597.8,4.39939]
[1724191877413,5.51552,2598.4,2597.8,4.39939]
[1724191877614,4.10265085,2598.3,2597.8,0.55]
[1724191877809,2.2641,2598.2,2597.8,0.55]
[1724191878212,0.25398085,2598.1,2597.8,0.55]
[1724191878433,2.2641,2598.2,2597.8,0.55]
[1724191878729,0.25398085,2598.1,2597.8,0.55]
[1724191879025,3.9311,2598.2,2597.6,19.47]
[1724191879227,0.25398085,2598.1,2597.7,0.55]
[1724191879429,3.9311,2598.2,2597.7,0.55]
[1724191879600,0.25398085,2598.1,2597.7,0.55]
[1724191879932,3.9311,2598.2,2597.7,0.55]